[Event "Titled Tuesday Blitz June 28 Late 2022"]
[White "Baches Garcia, Guillermo"]
[Black "Van Foreest, Jorden"]
[WhiteFideId "2209764"]
[BlackFideId "1039784"]
[WhiteElo "2502"]
[BlackElo "2609"]
[Result "0-1"]
[Round "01"]
[TimeControl "180+1"]
[Date "2022.06.28"]
[WhiteClock "0:00:23"]
[BlackClock "0:02:14"]

1. e4 {[%clk 0:03:00]}  g6 {[%clk 0:02:56]} 2. d4 {[%clk 0:03:00]}  Bg7 {[%clk 0:02:51]} 3. Nc3 {[%clk 0:03:00]}  d5 {[%clk 0:02:52]} 4. e5 {[%clk 0:02:54]}  c5 {[%clk 0:02:45]} 5. f4 {[%clk 0:02:51]}  a6 {[%clk 0:02:42]} 6. Nf3 {[%clk 0:02:33]}  Bg4 {[%clk 0:02:40]} 7. dxc5 {[%clk 0:02:28]}  e6 {[%clk 0:02:40]} 8. Be3 {[%clk 0:02:20]}  Nc6 {[%clk 0:02:39]} 9. Na4 {[%clk 0:02:08]}  f6 {[%clk 0:02:37]} 10. exf6 {[%clk 0:02:00]}  Nxf6 {[%clk 0:02:36]} 11. c3 {[%clk 0:01:55]}  O-O {[%clk 0:02:34]} 12. Be2 {[%clk 0:01:48]}  Nh5 {[%clk 0:02:29]} 13. Qd2 {[%clk 0:01:35]}  Qc7 {[%clk 0:02:21]} 14. O-O {[%clk 0:01:12]}  Nxf4 {[%clk 0:02:19]} 15. Bxf4 {[%clk 0:01:12]}  Rxf4 {[%clk 0:02:17]} 16. Nb6 {[%clk 0:01:07]}  Raf8 {[%clk 0:02:18]} 17. h3 {[%clk 0:01:06]}  Bxf3 {[%clk 0:02:18]} 18. Bxf3 {[%clk 0:01:05]}  Ne5 {[%clk 0:02:18]} 19. Nxd5 {[%clk 0:00:25]}  Qxc5+ {[%clk 0:02:14]} 20. Ne3 {[%clk 0:00:23]}  Nc4 {[%clk 0:02:14]} 0-1


[Site "https://www.chess.com"]

[Event "Titled Tuesday Blitz June 28 Late 2022"]
[White "Balint, Vilmos"]
[Black "Cruz, Cristhian"]
[WhiteFideId "718050"]
[BlackFideId "3801969"]
[WhiteElo "2059"]
[BlackElo "2497"]
[Result "1-0"]
[Round "01"]
[TimeControl "180+1"]
[Date "2022.06.29"]
[WhiteClock "0:00:46"]
[BlackClock "0:00:43"]

1. d4 {[%clk 0:02:56]}  Nf6 {[%clk 0:02:58]} 2. Nf3 {[%clk 0:02:40]}  e6 {[%clk 0:02:57]} 3. g3 {[%clk 0:02:39]}  c5 {[%clk 0:02:56]} 4. Bg2 {[%clk 0:02:38]}  cxd4 {[%clk 0:02:56]} 5. Nxd4 {[%clk 0:02:38]}  d5 {[%clk 0:02:56]} 6. O-O {[%clk 0:02:38]}  e5 {[%clk 0:02:56]} 7. Nb3 {[%clk 0:02:38]}  Be6 {[%clk 0:02:50]} 8. Bg5 {[%clk 0:02:37]}  Nbd7 {[%clk 0:02:42]} 9. Nc3 {[%clk 0:02:28]}  Be7 {[%clk 0:02:42]} 10. f4 {[%clk 0:02:17]}  exf4 {[%clk 0:02:35]} 11. Bxf4 {[%clk 0:02:15]}  Nc5 {[%clk 0:02:18]} 12. Nd4 {[%clk 0:02:09]}  O-O {[%clk 0:02:17]} 13. Nxe6 {[%clk 0:01:56]}  Nxe6 {[%clk 0:02:16]} 14. Nxd5 {[%clk 0:01:53]}  Nxd5 {[%clk 0:02:14]} 15. Qxd5 {[%clk 0:01:52]}  Qb6+ {[%clk 0:02:11]} 16. Kh1 {[%clk 0:01:53]}  Qxb2 {[%clk 0:02:05]} 17. Qxb7 {[%clk 0:01:53]}  Qxb7 {[%clk 0:02:02]} 18. Bxb7 {[%clk 0:01:54]}  Rad8 {[%clk 0:02:01]} 19. Rad1 {[%clk 0:01:50]}  Nd4 {[%clk 0:01:52]} 20. Rd2 {[%clk 0:01:45]}  Ne6 {[%clk 0:01:45]} 21. Rfd1 {[%clk 0:01:44]}  Nxf4 {[%clk 0:01:44]} 22. Rxd8 {[%clk 0:01:41]}  Bxd8 {[%clk 0:01:42]} 23. gxf4 {[%clk 0:01:40]}  Bb6 {[%clk 0:01:41]} 24. Kg2 {[%clk 0:01:38]}  g6 {[%clk 0:01:38]} 25. Kf3 {[%clk 0:01:38]}  f5 {[%clk 0:01:34]} 26. c4 {[%clk 0:01:37]}  Re8 {[%clk 0:01:33]} 27. Rd3 {[%clk 0:01:32]}  Re7 {[%clk 0:01:32]} 28. Bd5+ {[%clk 0:01:30]}  Kg7 {[%clk 0:01:32]} 29. a4 {[%clk 0:01:28]}  h6 {[%clk 0:01:31]} 30. h4 {[%clk 0:01:26]}  Kf6 {[%clk 0:01:31]} 31. Ra3 {[%clk 0:01:26]}  g5 {[%clk 0:01:20]} 32. hxg5+ {[%clk 0:01:25]}  hxg5 {[%clk 0:01:21]} 33. fxg5+ {[%clk 0:01:26]}  Kxg5 {[%clk 0:01:21]} 34. a5 {[%clk 0:01:27]}  Bc5 {[%clk 0:01:20]} 35. Rb3 {[%clk 0:01:27]}  Rh7 {[%clk 0:01:17]} 36. Rb8 {[%clk 0:01:25]}  Rh3+ {[%clk 0:01:16]} 37. Kg2 {[%clk 0:01:25]}  Ra3 {[%clk 0:01:16]} 38. Rb5 {[%clk 0:01:23]}  Bd4 {[%clk 0:01:10]} 39. Be4 {[%clk 0:01:22]}  Kf4 {[%clk 0:01:10]} 40. Bxf5 {[%clk 0:01:21]}  Ke3 {[%clk 0:01:10]} 41. Bd3 {[%clk 0:01:21]}  Rc3 {[%clk 0:01:06]} 42. Kg3 {[%clk 0:01:20]}  Rc1 {[%clk 0:01:06]} 43. Kg4 {[%clk 0:01:21]}  Rf1 {[%clk 0:01:05]} 44. Rb7 {[%clk 0:01:18]}  Rf4+ {[%clk 0:01:04]} 45. Kg5 {[%clk 0:01:18]}  Rf8 {[%clk 0:01:03]} 46. Re7+ {[%clk 0:01:17]}  Kd2 {[%clk 0:01:03]} 47. Rd7 {[%clk 0:01:17]}  Kc3 {[%clk 0:01:04]} 48. a6 {[%clk 0:01:14]}  Bb6 {[%clk 0:01:02]} 49. Rd5 {[%clk 0:01:09]}  Kb4 {[%clk 0:01:00]} 50. Rb5+ {[%clk 0:01:09]}  Kc3 {[%clk 0:01:00]} 51. c5 {[%clk 0:01:10]}  Bc7 {[%clk 0:01:00]} 52. Rb7 {[%clk 0:01:10]}  Bf4+ {[%clk 0:00:59]} 53. Kg4 {[%clk 0:01:09]}  Be3 {[%clk 0:01:00]} 54. c6 {[%clk 0:01:09]}  Rc8 {[%clk 0:00:58]} 55. Be4 {[%clk 0:01:07]}  Kd4 {[%clk 0:00:56]} 56. Bf3 {[%clk 0:01:07]}  Kc5 {[%clk 0:00:55]} 57. Rxa7 {[%clk 0:01:07]}  Kb6 {[%clk 0:00:54]} 58. Re7 {[%clk 0:01:00]}  Bc5 {[%clk 0:00:54]} 59. Re5 {[%clk 0:00:59]}  Bd6 {[%clk 0:00:54]} 60. Re6 {[%clk 0:00:57]}  Bc7 {[%clk 0:00:53]} 61. Kf5 {[%clk 0:00:55]}  Kxa6 {[%clk 0:00:54]} 62. Re7 {[%clk 0:00:55]}  Kb6 {[%clk 0:00:54]} 63. Ke6 {[%clk 0:00:55]}  Rd8 {[%clk 0:00:54]} 64. Rh7 {[%clk 0:00:52]}  Rd6+ {[%clk 0:00:54]} 65. Ke7 {[%clk 0:00:52]}  Rd2 {[%clk 0:00:53]} 66. Rh1 {[%clk 0:00:52]}  Bd6+ {[%clk 0:00:52]} 67. Ke6 {[%clk 0:00:51]}  Bf4 {[%clk 0:00:44]} 68. Rb1+ {[%clk 0:00:50]}  Kc7 {[%clk 0:00:43]} 69. Rb7+ {[%clk 0:00:50]}  Kc8 {[%clk 0:00:43]} 70. Bg4 {[%clk 0:00:47]}  Bc7 {[%clk 0:00:43]} 71. Ke7+ {[%clk 0:00:46]} 1-0


[Site "https://www.chess.com"]

[Event "Titled Tuesday Blitz June 28 Late 2022"]
[White "Bortnyk, Mykola"]
[Black "Ozates, Tuna"]
[WhiteFideId "14120836"]
[BlackFideId "6354521"]
[WhiteElo "2582"]
[BlackElo "1887"]
[Result "1-0"]
[Round "01"]
[TimeControl "180+1"]
[Date "2022.06.28"]
[WhiteClock "0:00:18"]
[BlackClock "0:00:03"]

1. e4 {[%clk 0:03:00]}  c5 {[%clk 0:02:56]} 2. c3 {[%clk 0:03:00]}  d5 {[%clk 0:02:55]} 3. exd5 {[%clk 0:02:59]}  Nf6 {[%clk 0:02:56]} 4. d4 {[%clk 0:02:58]}  cxd4 {[%clk 0:02:56]} 5. cxd4 {[%clk 0:02:58]}  Nxd5 {[%clk 0:02:55]} 6. Nf3 {[%clk 0:02:58]}  Nc6 {[%clk 0:02:56]} 7. Nc3 {[%clk 0:02:56]}  Bg4 {[%clk 0:02:57]} 8. Bc4 {[%clk 0:02:55]}  e6 {[%clk 0:02:56]} 9. Be3 {[%clk 0:02:35]}  Bb4 {[%clk 0:02:46]} 10. Qb3 {[%clk 0:02:34]}  Na5 {[%clk 0:02:38]} 11. Qa4+ {[%clk 0:02:31]}  Nc6 {[%clk 0:02:38]} 12. Rc1 {[%clk 0:02:23]}  O-O {[%clk 0:02:35]} 13. Nd2 {[%clk 0:02:19]}  Nxe3 {[%clk 0:02:30]} 14. fxe3 {[%clk 0:02:19]}  Qh4+ {[%clk 0:02:30]} 15. g3 {[%clk 0:02:19]}  Qg5 {[%clk 0:02:18]} 16. Nf1 {[%clk 0:02:08]}  Bf3 {[%clk 0:01:45]} 17. Rg1 {[%clk 0:02:07]}  Rac8 {[%clk 0:01:30]} 18. a3 {[%clk 0:01:51]}  Bd6 {[%clk 0:01:17]} 19. Be2 {[%clk 0:01:49]}  Bxe2 {[%clk 0:00:55]} 20. Nxe2 {[%clk 0:01:50]}  e5 {[%clk 0:00:55]} 21. d5 {[%clk 0:01:43]}  Ne7 {[%clk 0:00:55]} 22. Rxc8 {[%clk 0:01:43]}  Rxc8 {[%clk 0:00:56]} 23. e4 {[%clk 0:01:36]}  Bc5 {[%clk 0:00:50]} 24. Rg2 {[%clk 0:01:36]}  Bb6 {[%clk 0:00:43]} 25. Qd1 {[%clk 0:01:23]}  Ng6 {[%clk 0:00:42]} 26. Nc3 {[%clk 0:01:09]}  h5 {[%clk 0:00:29]} 27. Rc2 {[%clk 0:01:07]}  Rd8 {[%clk 0:00:24]} 28. Qf3 {[%clk 0:01:03]}  h4 {[%clk 0:00:23]} 29. b4 {[%clk 0:01:01]}  hxg3 {[%clk 0:00:23]} 30. hxg3 {[%clk 0:01:01]}  Rd6 {[%clk 0:00:22]} 31. Nd1 {[%clk 0:00:59]}  Rf6 {[%clk 0:00:11]} 32. Rc8+ {[%clk 0:00:59]}  Nf8 {[%clk 0:00:12]} 33. Qe2 {[%clk 0:00:52]}  Qh6 {[%clk 0:00:09]} 34. Nde3 {[%clk 0:00:49]}  Qh1 {[%clk 0:00:08]} 35. Nf5 {[%clk 0:00:45]}  g6 {[%clk 0:00:08]} 36. Qg4 {[%clk 0:00:40]}  Qg1 {[%clk 0:00:08]} 37. Rc2 {[%clk 0:00:23]}  Bd4 {[%clk 0:00:07]} 38. Qg5 {[%clk 0:00:18]}  Rxf5 {[%clk 0:00:04]} 39. exf5 {[%clk 0:00:18]}  e4 {[%clk 0:00:03]} 40. fxg6 {[%clk 0:00:17]}  Nxg6 {[%clk 0:00:04]} 41. d6 {[%clk 0:00:16]}  e3 {[%clk 0:00:03]} 42. d7 {[%clk 0:00:16]}  Bb6 {[%clk 0:00:02]} 43. d8=Q+ {[%clk 0:00:16]}  Bxd8 {[%clk 0:00:02]} 44. Qxd8+ {[%clk 0:00:17]}  Kh7 {[%clk 0:00:03]} 45. Qd3 {[%clk 0:00:17]}  Kg7 {[%clk 0:00:01]} 46. Qxe3 {[%clk 0:00:17]}  Qh1 {[%clk 0:00:02]} 47. Qd4+ {[%clk 0:00:17]}  f6 {[%clk 0:00:02]} 48. Rh2 {[%clk 0:00:18]}  Ne5 {[%clk 0:00:03]} 49. Rxh1 {[%clk 0:00:18]} 1-0


[Site "https://www.chess.com"]

[Event "Titled Tuesday Blitz June 28 Late 2022"]
[White "Chernomordik, Pavel"]
[Black "Zhigalko, Sergei"]
[WhiteFideId "2804530"]
[BlackFideId "13502956"]
[WhiteElo "2220"]
[BlackElo "2662"]
[Result "0-1"]
[Round "01"]
[TimeControl "180+1"]
[Date "2022.06.28"]
[WhiteClock "0:00:04"]
[BlackClock "0:00:03"]

1. e4 {[%clk 0:02:58]}  c5 {[%clk 0:02:59]} 2. Nc3 {[%clk 0:02:57]}  Nc6 {[%clk 0:02:57]} 3. Bb5 {[%clk 0:02:57]}  Nd4 {[%clk 0:02:57]} 4. Bc4 {[%clk 0:02:56]}  e6 {[%clk 0:02:57]} 5. Nge2 {[%clk 0:02:56]}  Nf6 {[%clk 0:02:57]} 6. O-O {[%clk 0:02:55]}  a6 {[%clk 0:02:56]} 7. a4 {[%clk 0:02:52]}  Qc7 {[%clk 0:02:48]} 8. d3 {[%clk 0:02:50]}  b6 {[%clk 0:02:42]} 9. Bf4 {[%clk 0:02:42]}  d6 {[%clk 0:02:37]} 10. Nxd4 {[%clk 0:02:35]}  cxd4 {[%clk 0:02:37]} 11. Ne2 {[%clk 0:02:35]}  Bb7 {[%clk 0:02:31]} 12. Bg5 {[%clk 0:02:28]}  Nxe4 {[%clk 0:02:30]} 13. dxe4 {[%clk 0:02:12]}  Qxc4 {[%clk 0:02:29]} 14. Nxd4 {[%clk 0:02:12]}  h6 {[%clk 0:02:15]} 15. Bh4 {[%clk 0:02:03]}  Bxe4 {[%clk 0:02:10]} 16. Re1 {[%clk 0:02:00]}  d5 {[%clk 0:02:04]} 17. b3 {[%clk 0:01:54]}  Qc7 {[%clk 0:02:00]} 18. c4 {[%clk 0:01:53]}  Bb4 {[%clk 0:01:58]} 19. Qg4 {[%clk 0:01:47]}  O-O {[%clk 0:01:07]} 20. Rxe4 {[%clk 0:01:38]}  dxe4 {[%clk 0:00:41]} 21. Bf6 {[%clk 0:01:35]}  g6 {[%clk 0:00:42]} 22. Qh4 {[%clk 0:01:20]}  Kh7 {[%clk 0:00:35]} 23. Bg5 {[%clk 0:01:15]}  h5 {[%clk 0:00:15]} 24. Qxe4 {[%clk 0:01:09]}  Be7 {[%clk 0:00:10]} 25. Nf3 {[%clk 0:01:08]}  Rad8 {[%clk 0:00:08]} 26. Qh4 {[%clk 0:01:03]}  Bxg5 {[%clk 0:00:08]} 27. Nxg5+ {[%clk 0:01:03]}  Kg8 {[%clk 0:00:08]} 28. Ne4 {[%clk 0:01:03]}  Qe5 {[%clk 0:00:05]} 29. Re1 {[%clk 0:01:00]}  f5 {[%clk 0:00:05]} 30. Qg5 {[%clk 0:00:57]}  Qg7 {[%clk 0:00:03]} 31. Ng3 {[%clk 0:00:46]}  e5 {[%clk 0:00:03]} 32. a5 {[%clk 0:00:40]}  bxa5 {[%clk 0:00:03]} 33. h4 {[%clk 0:00:35]}  e4 {[%clk 0:00:04]} 34. Ne2 {[%clk 0:00:31]}  Qf6 {[%clk 0:00:04]} 35. Qg3 {[%clk 0:00:29]}  Rd3 {[%clk 0:00:04]} 36. Qc7 {[%clk 0:00:27]}  Rf7 {[%clk 0:00:05]} 37. Qxa5 {[%clk 0:00:26]}  Qxh4 {[%clk 0:00:04]} 38. Qxa6 {[%clk 0:00:21]}  e3 {[%clk 0:00:02]} 39. Qxg6+ {[%clk 0:00:18]}  Rg7 {[%clk 0:00:03]} 40. Qe8+ {[%clk 0:00:18]}  Kh7 {[%clk 0:00:03]} 41. g3 {[%clk 0:00:13]}  exf2+ {[%clk 0:00:03]} 42. Kxf2 {[%clk 0:00:13]}  Rgxg3 {[%clk 0:00:04]} 43. Qf7+ {[%clk 0:00:11]}  Rg7+ {[%clk 0:00:03]} 44. Kf1 {[%clk 0:00:04]}  Qh3+ {[%clk 0:00:03]} 0-1


[Site "https://www.chess.com"]

[Event "Titled Tuesday Blitz June 28 Late 2022"]
[White "Corrales Jimenez, Fidel"]
[Black "Vusatiuk, Vladimir"]
[WhiteFideId "3506690"]
[BlackFideId "14118610"]
[WhiteElo "2541"]
[BlackElo "2157"]
[Result "0-1"]
[Round "01"]
[TimeControl "180+1"]
[Date "2022.06.28"]
[WhiteClock "0:00:02"]
[BlackClock "0:00:43"]

1. d4 {[%clk 0:02:50]}  Nf6 {[%clk 0:03:00]} 2. c4 {[%clk 0:02:50]}  e6 {[%clk 0:03:00]} 3. Nc3 {[%clk 0:02:50]}  Bb4 {[%clk 0:03:00]} 4. e3 {[%clk 0:02:46]}  O-O {[%clk 0:03:00]} 5. Ne2 {[%clk 0:02:45]}  Re8 {[%clk 0:02:59]} 6. a3 {[%clk 0:02:43]}  Bf8 {[%clk 0:02:59]} 7. b4 {[%clk 0:02:38]}  d5 {[%clk 0:02:56]} 8. Ng3 {[%clk 0:02:25]}  dxc4 {[%clk 0:02:39]} 9. Bxc4 {[%clk 0:02:24]}  e5 {[%clk 0:02:39]} 10. dxe5 {[%clk 0:02:22]}  Qxd1+ {[%clk 0:02:39]} 11. Nxd1 {[%clk 0:02:22]}  Rxe5 {[%clk 0:02:40]} 12. Bb2 {[%clk 0:02:22]}  Re8 {[%clk 0:02:36]} 13. Bxf6 {[%clk 0:02:21]}  gxf6 {[%clk 0:02:36]} 14. Nc3 {[%clk 0:02:19]}  Be6 {[%clk 0:02:29]} 15. Nd5 {[%clk 0:02:14]}  Bxd5 {[%clk 0:02:22]} 16. Bxd5 {[%clk 0:02:15]}  c6 {[%clk 0:02:23]} 17. Bc4 {[%clk 0:01:51]}  Nd7 {[%clk 0:02:21]} 18. Ke2 {[%clk 0:01:38]}  a5 {[%clk 0:02:13]} 19. bxa5 {[%clk 0:00:57]}  Rxa5 {[%clk 0:02:04]} 20. a4 {[%clk 0:00:56]}  Rea8 {[%clk 0:01:32]} 21. Rhd1 {[%clk 0:00:51]}  Nb6 {[%clk 0:01:31]} 22. Bb3 {[%clk 0:00:49]}  Nxa4 {[%clk 0:01:31]} 23. Bxa4 {[%clk 0:00:20]}  Rxa4 {[%clk 0:01:32]} 24. Rac1 {[%clk 0:00:18]}  Kg7 {[%clk 0:01:01]} 25. Kf3 {[%clk 0:00:18]}  Kg6 {[%clk 0:01:00]} 26. Rd7 {[%clk 0:00:08]}  Rb4 {[%clk 0:00:59]} 27. h4 {[%clk 0:00:07]}  h5 {[%clk 0:00:55]} 28. Ne2 {[%clk 0:00:07]}  Bh6 {[%clk 0:00:50]} 29. Nd4 {[%clk 0:00:01]}  Ra2 {[%clk 0:00:47]} 30. Rc5 {[%clk 0:00:02]}  Rbb2 {[%clk 0:00:43]} 0-1


[Site "https://www.chess.com"]

[Event "Titled Tuesday Blitz June 28 Late 2022"]
[White "D`Arruda, Ricardo D."]
[Black "Livaic, Leon"]
[WhiteFideId "100692"]
[BlackFideId "14531534"]
[WhiteElo "2451"]
[BlackElo "2540"]
[Result "0-1"]
[Round "01"]
[TimeControl "180+1"]
[Date "2022.06.28"]
[WhiteClock "0:00:16"]
[BlackClock "0:01:23"]

1. d4 {[%clk 0:02:59]}  Nf6 {[%clk 0:02:58]} 2. Nf3 {[%clk 0:02:58]}  d5 {[%clk 0:02:58]} 3. Bf4 {[%clk 0:02:56]}  c5 {[%clk 0:02:58]} 4. e3 {[%clk 0:02:55]}  cxd4 {[%clk 0:02:58]} 5. exd4 {[%clk 0:02:54]}  Nc6 {[%clk 0:02:59]} 6. c3 {[%clk 0:02:54]}  Bg4 {[%clk 0:02:58]} 7. Nbd2 {[%clk 0:02:49]}  e6 {[%clk 0:02:58]} 8. Bd3 {[%clk 0:02:48]}  Bd6 {[%clk 0:02:57]} 9. Bxd6 {[%clk 0:02:47]}  Qxd6 {[%clk 0:02:58]} 10. O-O {[%clk 0:02:45]}  O-O {[%clk 0:02:58]} 11. h3 {[%clk 0:02:45]}  Bh5 {[%clk 0:02:56]} 12. Re1 {[%clk 0:02:45]}  Rab8 {[%clk 0:02:55]} 13. a4 {[%clk 0:02:44]}  a6 {[%clk 0:02:51]} 14. a5 {[%clk 0:02:37]}  Qc7 {[%clk 0:02:37]} 15. Qa4 {[%clk 0:02:34]}  Bg6 {[%clk 0:02:27]} 16. Bxg6 {[%clk 0:02:33]}  hxg6 {[%clk 0:02:28]} 17. Ne5 {[%clk 0:02:33]}  Nxe5 {[%clk 0:02:27]} 18. Rxe5 {[%clk 0:02:34]}  b5 {[%clk 0:02:23]} 19. axb6 {[%clk 0:02:33]}  Rxb6 {[%clk 0:02:23]} 20. Ra2 {[%clk 0:02:25]}  Rfb8 {[%clk 0:02:21]} 21. Qc2 {[%clk 0:02:12]}  Qb7 {[%clk 0:02:09]} 22. b3 {[%clk 0:02:10]}  Rc6 {[%clk 0:02:07]} 23. Qd3 {[%clk 0:02:04]}  Qb5 {[%clk 0:01:46]} 24. Re3 {[%clk 0:01:59]}  Qxd3 {[%clk 0:01:42]} 25. Rxd3 {[%clk 0:01:59]}  Ne4 {[%clk 0:01:43]} 26. Nxe4 {[%clk 0:01:54]}  dxe4 {[%clk 0:01:44]} 27. Re3 {[%clk 0:01:54]}  Rxb3 {[%clk 0:01:41]} 28. Rxe4 {[%clk 0:01:43]}  Rbxc3 {[%clk 0:01:42]} 29. Re5 {[%clk 0:01:27]}  Rc1+ {[%clk 0:01:35]} 30. Kh2 {[%clk 0:01:26]}  R1c2 {[%clk 0:01:35]} 31. Rxc2 {[%clk 0:01:12]}  Rxc2 {[%clk 0:01:36]} 32. Kg3 {[%clk 0:01:09]}  Kf8 {[%clk 0:01:36]} 33. Ra5 {[%clk 0:01:09]}  Rc6 {[%clk 0:01:36]} 34. d5 {[%clk 0:00:59]}  exd5 {[%clk 0:01:37]} 35. Rxd5 {[%clk 0:00:59]}  Ke7 {[%clk 0:01:37]} 36. Ra5 {[%clk 0:00:58]}  Kd6 {[%clk 0:01:37]} 37. f3 {[%clk 0:00:51]}  Kc7 {[%clk 0:01:37]} 38. h4 {[%clk 0:00:41]}  Kb6 {[%clk 0:01:36]} 39. Rd5 {[%clk 0:00:41]}  a5 {[%clk 0:01:35]} 40. Rd8 {[%clk 0:00:40]}  Kb5 {[%clk 0:01:34]} 41. Rd7 {[%clk 0:00:34]}  a4 {[%clk 0:01:32]} 42. Rxf7 {[%clk 0:00:27]}  a3 {[%clk 0:01:32]} 43. Re7 {[%clk 0:00:28]}  a2 {[%clk 0:01:31]} 44. Re1 {[%clk 0:00:28]}  Kb4 {[%clk 0:01:26]} 45. Kg4 {[%clk 0:00:28]}  Rc5 {[%clk 0:01:23]} 46. f4 {[%clk 0:00:20]}  Ka3 {[%clk 0:01:23]} 47. Kh3 {[%clk 0:00:17]}  Kb2 {[%clk 0:01:22]} 48. g4 {[%clk 0:00:16]}  Rc3+ {[%clk 0:01:22]} 49. Kg2 {[%clk 0:00:16]}  Rc1 {[%clk 0:01:23]} 0-1


[Site "https://www.chess.com"]

[Event "Titled Tuesday Blitz June 28 Late 2022"]
[White "Diaz Rosas, Julio Cesar"]
[Black "Gaisinsky, Adam"]
[WhiteFideId "5105099"]
[BlackFideId "2620561"]
[WhiteElo "2278"]
[BlackElo "1965"]
[Result "1-0"]
[Round "01"]
[TimeControl "180+1"]
[Date "2022.06.29"]
[WhiteClock "0:01:07"]
[BlackClock "0:00:01"]

1. d4 {[%clk 0:02:58]}  Nf6 {[%clk 0:03:00]} 2. c4 {[%clk 0:02:58]}  e6 {[%clk 0:03:00]} 3. Nc3 {[%clk 0:02:58]}  Bb4 {[%clk 0:03:01]} 4. a3 {[%clk 0:02:58]}  Bxc3+ {[%clk 0:03:01]} 5. bxc3 {[%clk 0:02:59]}  d5 {[%clk 0:03:00]} 6. e3 {[%clk 0:02:56]}  O-O {[%clk 0:03:00]} 7. Bd3 {[%clk 0:02:56]}  dxc4 {[%clk 0:03:00]} 8. Bxc4 {[%clk 0:02:57]}  c5 {[%clk 0:02:58]} 9. Ne2 {[%clk 0:02:56]}  Qc7 {[%clk 0:02:58]} 10. Bd3 {[%clk 0:02:54]}  b6 {[%clk 0:02:54]} 11. O-O {[%clk 0:02:53]}  Bb7 {[%clk 0:02:54]} 12. Ng3 {[%clk 0:02:54]}  Nbd7 {[%clk 0:02:51]} 13. e4 {[%clk 0:02:51]}  cxd4 {[%clk 0:02:48]} 14. cxd4 {[%clk 0:02:52]}  e5 {[%clk 0:02:47]} 15. Nf5 {[%clk 0:02:37]}  exd4 {[%clk 0:02:44]} 16. Qf3 {[%clk 0:02:37]}  Rac8 {[%clk 0:02:33]} 17. Bf4 {[%clk 0:02:17]}  Qd8 {[%clk 0:02:24]} 18. Rfe1 {[%clk 0:02:02]}  Nc5 {[%clk 0:02:03]} 19. Bg5 {[%clk 0:01:56]}  Nxd3 {[%clk 0:01:52]} 20. Qxd3 {[%clk 0:01:55]}  Rc3 {[%clk 0:01:41]} 21. Qd1 {[%clk 0:01:55]}  h6 {[%clk 0:00:38]} 22. Bh4 {[%clk 0:01:52]}  Kh7 {[%clk 0:00:37]} 23. Nxd4 {[%clk 0:01:25]}  g5 {[%clk 0:00:33]} 24. Bg3 {[%clk 0:01:21]}  Bxe4 {[%clk 0:00:25]} 25. Be5 {[%clk 0:01:17]}  Bg6 {[%clk 0:00:23]} 26. Ne6 {[%clk 0:01:08]}  fxe6 {[%clk 0:00:04]} 27. Qxd8 {[%clk 0:01:07]}  Rxd8 {[%clk 0:00:01]} 28. Bxf6 {[%clk 0:01:07]} 1-0


[Site "https://www.chess.com"]

[Event "Titled Tuesday Blitz June 28 Late 2022"]
[White "Djokic, Mihailo"]
[Black "Gabdushev, Ruslan"]
[WhiteFideId "976440"]
[BlackFideId "4137833"]
[WhiteElo "2255"]
[BlackElo "2312"]
[Result "1-0"]
[Round "01"]
[TimeControl "180+1"]
[Date "2022.06.29"]
[WhiteClock "0:00:03"]
[BlackClock "0:00:01"]

1. e4 {[%clk 0:03:00]}  Nc6 {[%clk 0:02:58]} 2. Nc3 {[%clk 0:02:50]}  e6 {[%clk 0:02:56]} 3. d4 {[%clk 0:02:49]}  Bb4 {[%clk 0:02:55]} 4. Nf3 {[%clk 0:02:14]}  d6 {[%clk 0:02:52]} 5. Be2 {[%clk 0:01:59]}  Nge7 {[%clk 0:02:47]} 6. O-O {[%clk 0:01:56]}  O-O {[%clk 0:02:46]} 7. a3 {[%clk 0:01:38]}  Ba5 {[%clk 0:02:40]} 8. b4 {[%clk 0:01:38]}  Bb6 {[%clk 0:02:39]} 9. Be3 {[%clk 0:01:38]}  e5 {[%clk 0:02:25]} 10. Qd2 {[%clk 0:01:28]}  Ng6 {[%clk 0:02:05]} 11. d5 {[%clk 0:01:15]}  Nce7 {[%clk 0:02:01]} 12. a4 {[%clk 0:01:08]}  Bxe3 {[%clk 0:01:56]} 13. fxe3 {[%clk 0:01:06]}  h6 {[%clk 0:01:43]} 14. a5 {[%clk 0:01:03]}  f5 {[%clk 0:01:37]} 15. exf5 {[%clk 0:01:02]}  Bxf5 {[%clk 0:01:32]} 16. Bd3 {[%clk 0:01:00]}  Qd7 {[%clk 0:01:30]} 17. a6 {[%clk 0:00:48]}  b6 {[%clk 0:01:26]} 18. h3 {[%clk 0:00:36]}  Rf7 {[%clk 0:01:08]} 19. e4 {[%clk 0:00:35]}  Bxh3 {[%clk 0:01:06]} 20. gxh3 {[%clk 0:00:36]}  Nf4 {[%clk 0:01:05]} 21. Qh2 {[%clk 0:00:30]}  Nxh3+ {[%clk 0:01:04]} 22. Kh1 {[%clk 0:00:28]}  Ng6 {[%clk 0:01:02]} 23. Ne2 {[%clk 0:00:22]}  Raf8 {[%clk 0:00:59]} 24. Nd2 {[%clk 0:00:22]}  Nf2+ {[%clk 0:00:54]} 25. Kg1 {[%clk 0:00:16]}  Qg4+ {[%clk 0:00:53]} 26. Qg3 {[%clk 0:00:15]}  Qh5 {[%clk 0:00:17]} 27. Rxf2 {[%clk 0:00:08]}  Rxf2 {[%clk 0:00:17]} 28. Qxf2 {[%clk 0:00:08]}  Rxf2 {[%clk 0:00:14]} 29. Kxf2 {[%clk 0:00:09]}  Qh4+ {[%clk 0:00:11]} 30. Kf1 {[%clk 0:00:07]}  Qh3+ {[%clk 0:00:07]} 31. Ke1 {[%clk 0:00:06]}  Qe3 {[%clk 0:00:06]} 32. Rb1 {[%clk 0:00:01]}  Nh4 {[%clk 0:00:05]} 33. Kd1 {[%clk 0:00:02]}  g5 {[%clk 0:00:01]} 34. Kc1 {[%clk 0:00:02]}  g4 {[%clk 0:00:01]} 35. Rb3 {[%clk 0:00:03]} 1-0


[Site "https://www.chess.com"]